Cogmind - Beta 10.2 @@@ ROGUE MODE // 2021.05.21 @ 16:37:45 Player: ChromeKnight Result: Self-destructed Performance ------------- Evolutions (3) 1500 Regions Visited (8) 1600 Robots Destroyed (37) 185 Value Destroyed (852) 852 Prototype IDs (25) 500 Alien Tech Used (0) 0 Bonus (314) 314 TOTAL SCORE: 4951 Bonus ------- Follower Combat Kills 14 Aligned with FarCom 300 Cogmind --------- Core Integrity 577/700 Matter 195/300 Energy 236/240 System Corruption 0% Temperature Cool (4) Movement Flying (37) Location -7/Lower Caves Parts ------- > --- POWER (2) -------- Makeshift Power Source Makeshift Power Source > --- PROPULSION (2) --- VTOL Module Xenon Bombardment Thruster > --- UTILITY (7) ------ Weight Redist. System Advanced Targeting Computer Hacking Suite Hacking Suite > --- WEAPON (2) ------- Light Cannon > --- INVENTORY (4) ---- Weight Redist. System Peak State ------------ > --- POWER ------------ Light Nuclear Core Light Nuclear Core > --- PROPULSION ------- Xenon Bombardment Thruster Xenon Bombardment Thruster > --- UTILITY ---------- Lightpack 2.0 Weight Redist. System Advanced Weight Redist. System Enhanced Optical Array Hacking Suite Hacking Suite > --- WEAPON ----------- AWS/Thermal > --- INVENTORY -------- Light Ion Engine Flight Unit VTOL Module VTOL Module VTOL Module Weight Redist. System Weight Redist. System Weight Redist. System Structural Scanner Advanced Terrain Scanner Advanced Targeting Computer Improved ECM Suite Propulsion Shielding Improved Utility Shielding Improved Utility Shielding Improved Utility Shielding Hardened Medium Armor Plating Improved Light Armor Plating Improved Light Armor Plating YOLO Cannon Light Cannon Light Cannon Datajack [Rating: 71] Favorites ----------- Power Light Ion Engine Engine Light Ion Engine Power Core Light Nuclear Core Propulsion Aluminum Leg Leg Aluminum Leg Flight Unit VTOL Module Utility Lightpack 2.0 Device Weight Redist. System Storage Lightpack 2.0 Processor Enhanced Optical Array Hackware Hacking Suite Protection Propulsion Shielding Weapon Light Cannon Energy Gun AWS/Thermal Ballistic Gun Assault Rifle Ballistic Cannon Light Cannon Special Melee Weapon Datajack Build | -11 -10 -10 -10 -9 -8 -7 -7 -7 ------- Run | Scr Mat Min Exi Min Mat Fac Low Low Slots Evolved 6 | . . . . . 4 2 . . Power 1 | . . . . . 1 . . . Propulsion . | . . . . . . . . . Utility 5 | . . . . . 3 2 . . Weapon . | . . . . . . . . . Parts Attached 52 | 6 7 . 1 2 7 16 5 8 Power 10 | 1 1 . . 1 1 4 2 . Engine 7 | 1 1 . . 1 1 1 2 . Core 3 | . . . . . . 3 . . Reactor . | . . . . . . . . . Propulsion 14 | 2 2 . . 1 2 4 2 1 Treads . | . . . . . . . . . Leg 7 | 2 2 . . 1 2 . . . Wheel . | . . . . . . . . . Hover . | . . . . . . . . . Flight 7 | . . . . . . 4 2 1 Utility 18 | 1 2 . 1 . 3 8 . 3 Device 5 | . . . . . . 4 . 1 Storage 3 | 1 1 . 1 . . . . . Processor 2 | . . . . . . 1 . 1 Hackware 3 | . . . . . . 2 . 1 Protection 5 | . 1 . . . 3 1 . . Artifact . | . . . . . . . . . Weapon 10 | 2 2 . . . 1 . 1 4 Energy Gun 2 | . . . . . 1 . 1 . Energy Cannon 1 | . . . . . . . . 1 Ballistic Gun 2 | 2 . . . . . . . . Ballistic Cannon 4 | . 2 . . . . . . 2 Launcher . | . . . . . . . . . Special Weapon . | . . . . . . . . . Impact Weapon . | . . . . . . . . . Slashing Weapon . | . . . . . . . . . Piercing Weapon . | . . . . . . . . . Special Melee Weapon 1 | . . . . . . . . 1 Unidentified Prototypes . | . . . . . . . . . Parts Lost 6 | . 1 . . . . . 3 2 Power 2 | . 1 . . . . . 1 . Propulsion 2 | . . . . . . . 2 . Utility 2 | . . . . . . . . 2 Weapon . | . . . . . . . . . Highest Loss Streak 3 | . 1 . . . . . 3 1 Average Slot Usage (%) 84 | . 91 100 94 85 55 81 68 77 Engine 12 | . 13 14 14 14 11 3 6 15 Core 1 | . . . . . . 11 4 . Leg 19 | . 28 28 28 28 17 . . . Flight 3 | . . . . . . 14 14 14 Device 2 | . . . . . . 16 7 6 Storage 11 | . 14 14 14 14 9 7 7 5 Processor 1 | . . . . . . 3 7 11 Hackware 3 | . . . . . . 13 15 14 Protection 6 | . 6 14 8 . 7 2 . . Energy Gun 2 | . . . . . 8 7 3 5 Ballistic Gun 1 | . 9 . . . . . . . Ballistic Cannon 16 | . 18 28 28 28 1 . . 2 Naked Turns . | . . . . . . . . . Heaviest Build 28 | 11 26 26 26 14 28 25 23 17 Greatest Support 32 | 20 20 20 20 20 32 29 29 18 Greatest Overweight (x) 1 | 1 1 1 1 . 1 . . . Average Overweight (x) . | . . 1 . . . . . . Largest Inventory Capacity 24 | 6 12 10 24 24 24 24 24 24 Average Capacity 16 | 5 9 10 15 24 24 24 24 18 Most Carried 24 | . 10 10 15 19 24 24 24 23 Average Carried 14 | . 7 10 11 16 22 22 23 16 Final Capacity 24 | 6 10 10 24 24 24 24 24 4 Final Carried 24 | . 10 10 15 19 24 24 23 1 Class Distribution -------------------- 49% | Mutant 48% | Hauler-Mutant Dominant Class ---------------- Mutant | -10/Materials Mutant | -10/Mines Mutant | -10/Exiles Hauler-Mutant | -9/Mines Hauler-Mutant | -8/Materials Hauler-Mutant | -7/Factory Hauler-Mutant | -7/Lower Caves Hauler-Mutant | -7/Lower Caves Resources | -11 -10 -10 -10 -9 -8 -7 -7 -7 ----------- Run | Scr Mat Min Exi Min Mat Fac Low Low Matter Collected 1065 | 252 179 133 . 47 214 160 45 35 Remotely . | . . . . . . . . . Salvage Created 963 | 20 179 83 . 26 379 180 96 . Parts 71 | 4 10 14 . 6 22 13 2 . Haulers Intercepted 2 | . 2 . . . . . . . Recyclers Shooed . | . . . . . . . . . Parts Field Recycled . | . . . . . . . . . Retrieved Matter . | . . . . . . . . . Parts Self-Destructed 6 | . . . . . . . 6 . Prevented . | . . . . . . . . . Kills | -11 -10 -10 -10 -9 -8 -7 -7 -7 ------- Run | Scr Mat Min Exi Min Mat Fac Low Low Combat Hostiles Destroyed 26 | . 4 4 . 4 6 5 3 . Guns 16 | . 4 . . . 5 5 2 . Cannons 8 | . . 4 . 4 . . . . Classes Destroyed 11 | 1 3 2 . . 3 1 1 . Worker 2 | . . 2 . . . . . . Builder 1 | . . 1 . . . . . . Tunneler 1 | 1 . . . . . . . . Hauler 2 | . 2 . . . . . . . Operator 4 | . . . . . 4 . . . Watcher 1 | . . . . . . 1 . . Swarmer 17 | . 3 4 . 4 . 4 2 . Grunt 3 | . 1 . . . 2 . . . Sentry 2 | . . . . . 2 . . . Hunter 3 | . . . . . 2 1 . . Programmer 1 | . . . . . . . 1 . Best Kill Streak 4 | 1 2 3 . 4 4 4 3 . Combat Bots Only 4 | . 2 3 . 4 2 4 3 . Max Kills in Single Turn 2 | 1 2 2 . 1 1 1 2 . Gunslinging 1 | . 1 . . . . . . . Exploded . | . . . . . . . . . Melee . | . . . . . . . . . Uniques/NPCs Destroyed . | . . . . . . . . . Combat | -11 -10 -10 -10 -9 -8 -7 -7 -7 -------- Run | Scr Mat Min Exi Min Mat Fac Low Low Damage Taken 1349 | . 230 84 . 216 214 156 336 113 Core 303 | . 55 47 . 42 36 10 73 40 Absorbed by Shields . | . . . . . . . . . Core Remaining (%) 78 | 100 . . . 42 93 . . . Volleys Fired 70 | 1 19 10 . 9 . . . 31 Largest 2 | 2 2 2 . 2 . . . 1 Hottest 70 | 40 70 70 . 70 . . . 63 Shots Fired 189 | 2 38 23 1 18 34 24 18 31 Gun 120 | 2 26 . . . 34 24 18 16 Cannon 69 | . 12 23 1 18 . . . 15 Launcher . | . . . . . . . . . Special . | . . . . . . . . . Kinetic 97 | 2 38 23 1 18 . . . 15 Thermal 92 | . . . . . 34 24 18 16 Explosive . | . . . . . . . . . Electromagnetic . | . . . . . . . . . Robot Hit Streak 22 | 2 6 5 . 2 6 6 22 2 Robot Miss Streak 5 | . 3 4 . 5 2 1 1 4 Penetration Max . | . . . . . . . . . Secondary Targets 1 | . 1 . . . . . . . Max Gunslinging Chain 1 | . 1 . . . . . . . Autonomous 77 | . . . . . 34 24 19 . Shots Hit Robots 110 | 2 16 9 . 7 25 21 17 13 Core Hits 44 | 1 7 7 . 4 12 8 3 2 Critical Hits 3 | . . 1 . 1 . . . 1 Critical Kills 1 | . . . . 1 . . . . Critical Parts Destroyed 2 | . . 1 . . . . . 1 Melee Attacks 1 | . . . . . . . . 1 Impact . | . . . . . . . . . Slashing . | . . . . . . . . . Piercing . | . . . . . . . . . Sneak Attacks . | . . . . . . . . . Combat Hostiles . | . . . . . . . . . Follow-up Attacks . | . . . . . . . . . Damage Inflicted 2960 | 25 187 230 . 141 888 644 581 264 Guns 2376 | 25 122 . . . 870 644 581 134 Cannons 566 | . 65 230 . 141 . . . 130 Explosions . | . . . . . . . . . Melee . | . . . . . . . . . Ramming 18 | . . . . . 18 . . . Kinetic 713 | 25 187 230 . 141 . . . 130 Thermal 2229 | . . . . . 870 644 581 134 Explosive . | . . . . . . . . . Electromagnetic . | . . . . . . . . . Impact . | . . . . . . . . . Slashing . | . . . . . . . . . Piercing . | . . . . . . . . . Highest Corruption 5 | . 5 5 5 5 . . . . Average Corruption 4 | . 2 5 5 5 . . . . Corruption Purged . | . . . . . . . . . Effects 39 | . 4 21 8 6 . . . . Message Errors 12 | . 1 7 2 2 . . . . Matter Fused 14 | . 1 10 1 2 . . . . Heat Flow Errors 3 | . 1 . 2 . . . . . Energy Discharges 3 | . 1 1 1 . . . . . Data Loss (minor) 2 | . . . 1 1 . . . . Misfires 4 | . . 3 1 . . . . . Targeting Errors 1 | . . . . 1 . . . . Overload Shots . | . . . . . . . . . Overflow Damage 2 | . . . . . 2 . . . Projectiles . | . . . . . . . . . Explosions . | . . . . . . . . . Melee 2 | . . . . . 2 . . . Knockbacks 6 | . . 2 . 1 . . . 3 Impact . | . . . . . . . . . Kinetic 6 | . . 2 . 1 . . . 3 Secondary . | . . . . . . . . . Self-Inflicted Damage 6 | . . . . . 6 . . . Shots . | . . . . . . . . . Rammed 1 | . . . . . 1 . . . Targets Rammed 2 | . . . . . 2 . . . Kicked 1 | . . . . . 1 . . . Crushed . | . . . . . . . . . Highest Temperature 273 | . 85 36 273 81 . . . 224 Average Temperature 68 | . 22 14 118 41 . . . 95 Received Heat Transfer 120 | . 12 . . . 72 . 36 . Siege Activations . | . . . . . . . . . Robots Corrupted . | . . . . . . . . . Combat Hostiles . | . . . . . . . . . Parts Fried 2 | . . . . . 2 . . . Impact Corruptions 1 | . . . . . 1 . . . Robots Melted 2 | . . . . . 1 . 1 . Combat Hostiles 2 | . . . . . 1 . 1 . Parts Melted 7 | . . . . . 4 2 1 . Heat Transferred 2886 | . . . . . 1110 814 666 296 Parts Sabotaged . | . . . . . . . . . Parts Stolen 5 | . . . . . . . . 5 Parts Stripped . | . . . . . . . . . Power Chain Reactions . | . . . . . . . . . Missiles Intercepted . | . . . . . . . . . Alert | -11 -10 -10 -10 -9 -8 -7 -7 -7 ------- Run | Scr Mat Min Exi Min Mat Fac Low Low Peak Influence 284 | 5 168 88 . 90 273 284 . . Initial 46 | . 3 8 . . 35 46 . . Average 85 | . 97 50 . 51 143 131 . . Maximum Alert Level 1 | . . . . . 1 1 . . Low Security (%) 93 | 100 100 100 . 100 71 85 . . Level 1 6 | . . . . . 28 14 . . Level 2 . | . . . . . . . . . Level 3 . | . . . . . . . . . Level 4 . | . . . . . . . . . Level 5 . | . . . . . . . . . High Security . | . . . . . . . . . Max Security . | . . . . . . . . . Squads Dispatched 3 | . . . . . 2 1 . . Investigation 1 | . . . . . 1 . . . Extermination . | . . . . . . . . . Reinforcement 2 | . . . . . 1 1 . . Assault . | . . . . . . . . . Garrison . | . . . . . . . . . Intercept . | . . . . . . . . . Construction Impeded . | . . . . . . . . . Haulers Reinforced . | . . . . . . . . . Stealth | -11 -10 -10 -10 -9 -8 -7 -7 -7 --------- Run | Scr Mat Min Exi Min Mat Fac Low Low Distress Signals 1 | . . . . . 1 . . . Communications Jammed . | . . . . . . . . . Distress Signals . | . . . . . . . . . Times Spotted 46 | . 8 7 . 4 10 8 5 4 Peak Tracking Total 4 | . 3 3 . 3 2 4 4 3 Tactical Retreats 1 | . . 1 . . . . . . Traps | -11 -10 -10 -10 -9 -8 -7 -7 -7 ------- Run | Scr Mat Min Exi Min Mat Fac Low Low Traps Triggered 5 | . 3 . . . 1 1 . . Indirectly . | . . . . . . . . . Trap Hack Attempts . | . . . . . . . . . Triggered . | . . . . . . . . . Disarmed . | . . . . . . . . . Reprogrammed . | . . . . . . . . . Reused . | . . . . . . . . . Traps Extracted . | . . . . . . . . . Installed . | . . . . . . . . . Triggered . | . . . . . . . . . Exploded 1 | . . . 1 . . . . . Machines | -11 -10 -10 -10 -9 -8 -7 -7 -7 ---------- Run | Scr Mat Min Exi Min Mat Fac Low Low Machines Disabled 3 | . 2 . . . . 1 . . Max in Single Turn 1 | . 1 . . . . 1 . . Machines Sabotaged . | . . . . . . . . . Garrisons Compromised . | . . . . . . . . . Overloaded Fab Kills . | . . . . . . . . . Fab Network Shutdowns . | . . . . . . . . . Hacking | -11 -10 -10 -10 -9 -8 -7 -7 -7 --------- Run | Scr Mat Min Exi Min Mat Fac Low Low Machines Accessed 9 | . 3 . 1 1 2 2 . . Terminals 7 | . 3 . . 1 2 1 . . Fabricators . | . . . . . . . . . Repair Stations . | . . . . . . . . . Recycling Units . | . . . . . . . . . Scanalyzers 1 | . . . . . . 1 . . Garrison Access . | . . . . . . . . . Total Hacks 20 | . 9 . 1 2 3 5 . . Successful 11 | . 5 . 1 . 1 4 . . Failed 9 | . 4 . . 2 2 1 . . Catastrophic . | . . . . . . . . . Database Lockouts . | . . . . . . . . . Manual 7 | . 3 . 1 2 1 . . . Terminals 17 | . 9 . . 2 3 3 . . Fabricators . | . . . . . . . . . Repair Stations . | . . . . . . . . . Recycling Units . | . . . . . . . . . Scanalyzers 2 | . . . . . . 2 . . Garrison Access . | . . . . . . . . . Terminal Hacks 5 | . 2 . 1 . . 2 . . Part Schematic 2 | . . . . . . 2 . . Prototype ID Bank 1 | . 1 . . . . . . . Branch Access Points 1 | . 1 . . . . . . . EX-Prototype ID Bank 1 | . . . 1 . . . . . Fabricator Hacks . | . . . . . . . . . Repair Station Hacks . | . . . . . . . . . Recycling Unit Hacks . | . . . . . . . . . Scanalyzer 2 | . . . . . . 2 . . Insert Component 1 | . . . . . . 1 . . Analyze 1 | . . . . . . 1 . . Garrison Access Hacks . | . . . . . . . . . Unauthorized Hacks 4 | . 3 . . . 1 . . . Terminals 4 | . 3 . . . 1 . . . Track 2 | . 1 . . . 1 . . . Assimilate 1 | . 1 . . . . . . . Operators 1 | . 1 . . . . . . . Fabricators . | . . . . . . . . . Repair Stations . | . . . . . . . . . Recycling Units . | . . . . . . . . . Scanalyzers . | . . . . . . . . . Garrison Access . | . . . . . . . . . Data Cores Recovered 3 | . . . . . 3 . . . Used 1 | . . . . . 1 . . . Hacking Detections 7 | . 2 . . 1 2 2 . . Full Trace Events . | . . . . . . . . . Feedback Events . | . . . . . . . . . Feedback Blocked . | . . . . . . . . . Robot Schematics Acquired . | . . . . . . . . . Robots Built . | . . . . . . . . . Matter . | . . . . . . . . . Time . | . . . . . . . . . Total Robot Build Rating . | . . . . . . . . . Part Schematics Acquired 3 | . . . . . . 3 . . Parts Built . | . . . . . . . . . Matter . | . . . . . . . . . Time . | . . . . . . . . . Total Part Build Rating . | . . . . . . . . . Parts Repaired . | . . . . . . . . . Time . | . . . . . . . . . Parts Recycled . | . . . . . . . . . Recycled Matter . | . . . . . . . . . Retrieved Matter . | . . . . . . . . . Retrieved Components . | . . . . . . . . . Parts Scanalyzed 1 | . . . . . . 1 . . Part Schematics Acquired 1 | . . . . . . 1 . . Parts Damaged . | . . . . . . . . . Bothacking | -11 -10 -10 -10 -9 -8 -7 -7 -7 ------------ Run | Scr Mat Min Exi Min Mat Fac Low Low Used RIF Installer . | . . . . . . . . . Robots Hacked 1 | . . . . . . . . 1 Non-combat . | . . . . . . . . . Combat 1 | . . . . . . . . 1 Robot Hacks Applied 1 | . . . . . . . . 1 parse_system 1 | . . . . . . . . 1 Relay Couplers Released . | . . . . . . . . . Robots Rewired . | . . . . . . . . . Allies Hacked . | . . . . . . . . . Hacks Repelled . | . . . . . . . . . Allies | -11 -10 -10 -10 -9 -8 -7 -7 -7 -------- Run | Scr Mat Min Exi Min Mat Fac Low Low Total Allies 1 | . . 1 . . . . . . Largest Group 1 | . . 1 . . . . . . Highest-Rated Group 31 | . . 31 . . . . . . Highest-Rated Ally 31 | . . 31 . . . . . . Total Orders . | . . . . . . . . . Ally Attacks 4 | . . 4 . . . . . . Total Damage 62 | . . 62 . . . . . . Kills 2 | . . 2 . . . . . . Allies Corrupted . | . . . . . . . . . Allies Melted . | . . . . . . . . . Intel | -11 -10 -10 -10 -9 -8 -7 -7 -7 ------- Run | Scr Mat Min Exi Min Mat Fac Low Low Robot Analysis Total . | . . . . . . . . . Derelict Logs Recovered 5 | . . 1 . 2 . . 1 1 Drone Launches . | . . . . . . . . . Drone Recoveries . | . . . . . . . . . Exploration | -11 -10 -10 -10 -9 -8 -7 -7 -7 ------------- Run | Scr Mat Min Exi Min Mat Fac Low Low Turns Passed 3330 | 54 485 873 386 305 430 297 292 208 Spaces Moved 3190 | 40 264 557 272 195 314 528 662 358 Core 8 | 8 . . . . . . . . Treads . | . . . . . . . . . Legs 1634 | 32 264 557 272 195 314 . . . Wheels . | . . . . . . . . . Hover . | . . . . . . . . . Flight 1548 | . . . . . . 528 662 358 Fastest Speed 37 | 50 120 150 120 120 120 37 37 37 Average Speed 88 | 107 144 150 137 120 121 37 37 37 Slowest Speed 150 | 120 150 150 150 120 150 37 40 37 Overloaded Moves . | . . . . . . . . . Propulsion Burnouts . | . . . . . . . . . Robots Hopped 6 | . . . . . . 4 1 1 Cave-ins Triggered . | . . . . . . . . . Exploration Rate (%) 50 | 5 57 99 61 57 25 19 73 59 Regions Visited 8 Branch Regions 5 Pre-discovered Areas 1 | . . 1 . . . . . . Known Exits Taken 1 | . 1 . . . . . . . Unknown Exits Taken 7 | 1 . 1 1 1 1 1 1 . Scrap Searched 5 | . . 2 . 1 . . 1 1 Spaces Dug . | . . . . . . . . . Terrain Destroyed 5 | . . . . . 4 1 . . Melee . | . . . . . . . . . Projectile 5 | . . . . . 4 1 . . AOE . | . . . . . . . . . Terrain Rammed . | . . . . . . . . . Walls Destroyed . | . . . . . . . . . Machines Disabled . | . . . . . . . . . Actions | -11 -10 -10 -10 -9 -8 -7 -7 -7 --------- Run | Scr Mat Min Exi Min Mat Fac Low Low Total 3593 | 46 335 575 285 247 360 637 707 401 Wait 177 | . 14 9 2 37 24 52 39 . Move 3170 | 39 263 556 271 194 313 519 659 356 Hop 6 | . . . . . . 4 1 1 Pick Up 54 | . 18 . 9 4 9 13 . 1 Fast Attach 21 | 6 5 . 1 . 4 . 3 2 Attach 19 | . . . . . 2 9 2 6 Detach 6 | . 1 . . . . 3 1 1 Swap 12 | . 2 . . 2 1 7 . . Drop 40 | . 13 . 2 1 5 15 2 2 Fire 70 | 1 19 10 . 9 . . . 31 Melee 1 | . . . . . . . . 1 Ram . | . . . . . . . . . Kick 2 | . . . . . 2 . . . Crush . | . . . . . . . . . Escape Stasis 15 | . . . . . . 15 . . Rewire . | . . . . . . . . . Trap . | . . . . . . . . . Miscellaneous . | . . . . . . . . . Route ------- -11/Scrapyard -10/Materials (discovered 3 exits: [*Mat] / *Min x2) -10/Mines (discovered 3 exits: [*Mat x2] / *Exi) -10/Exiles -9/Mines -8/Materials -7/Factory -7/Lower Caves -7/Lower Caves History --------- Turn | Location | Event 3 | -11/Scrapyard | Discovered new exit (range 16) 55 | -11/Scrapyard | Entered Materials 64 | -10/Materials | Identified exit to Mines 328 | -10/Materials | Build established: Mutant 369 | -10/Materials | Discovered new exit (range 8) 540 | -10/Materials | Entered Mines 672 | -10/Mines | Received a Rocket Launcher from a helpful Derelict 786 | -10/Mines | Discovered new exit (range 7) 975 | -10/Mines | Received a Mining Laser from a helpful Derelict 1058 | -10/Mines | Deemed a non-threat by the Exiles lab entrance 1110 | -10/Mines | Learned location of Zion (-7) 1137 | -10/Mines | Discovered new exit (range 5) 1407 | -10/Mines | Discovered new exit (range 5) 1413 | -10/Mines | Entered Exiles 1454 | -10/Exiles | Met 8R-AWN 1476 | -10/Exiles | Met EX-HEX 1515 | -10/Exiles | Met EX-BIN 1536 | -10/Exiles | Aligned with FarCom system 1538 | -10/Exiles | Given EX-Vault access code 1635 | -10/Exiles | Opened EX-Vault 1650 | -10/Exiles | Found Lightpack 2.0 1675 | -10/Exiles | Found AWS/Thermal 1679 | -10/Exiles | Found YOLO Cannon 1701 | -10/Exiles | Exiles lab attacked by MAIN.C 1784 | -10/Exiles | Discovered new exit (range 14) 1799 | -10/Exiles | Stole three prototypes: Lightpack 2.0, AWS/Thermal, YOLO Cannon 1799 | -10/Exiles | Entered Mines 1925 | -9/Mines | Core integrity fell below 50% 1975 | -9/Mines | Build established: Hauler-Mutant 2044 | -9/Mines | Learned Materials security intel 2052 | -9/Mines | Discovered new exit (range 9) 2104 | -9/Mines | Entered Materials 2104 | -8/Materials | Evolved 4 slots: Power x1, Utility x3 2524 | -8/Materials | Discovered new exit (range 8) 2534 | -8/Materials | Entered Factory 2534 | -7/Factory | Evolved 2 slots: Utility x2 2536 | -7/Factory | FarCom data flow suspended 2813 | -7/Factory | Discovered new exit (range 21) 2831 | -7/Factory | Entered Lower Caves 2843 | -7/Lower Caves | Attracted the attention of an 0b10 checkpoint 2890 | -7/Lower Caves | Lost 3 parts (1p2n) 2894 | -7/Lower Caves | Encountered a Warlord checkpoint 2906 | -7/Lower Caves | Learned Factory stockpile data 3046 | -7/Lower Caves | Discovered new exit (range 12) 3123 | -7/Lower Caves | Entered another Lower Caves area 3155 | -7/Lower Caves | VTOL Module stolen by Master Thief 3204 | -7/Lower Caves | Learned Factory garrison access intel 3259 | -7/Lower Caves | Spotted 85-2J1(f) 3261 | -7/Lower Caves | Encountered a Master Thief 3271 | -7/Lower Caves | Spotted KK-50U(f) 3272 | -7/Lower Caves | Encountered a Master Thief 3272 | -7/Lower Caves | Spotted T3-3F9(f) 3273 | -7/Lower Caves | Encountered a Master Thief 3275 | -7/Lower Caves | Lightpack 2.0 stolen by Master Thief 3303 | -7/Lower Caves | YOLO Cannon stolen by Master Thief 3331 | -7/Lower Caves | Self-destructed Last Messages --------------- 03164_ Found Titanium Leg. 03164_ Found 35 Matter. 03165_ Acquired 30 matter. 03167_ Acquired Weight Redist. System. 03169_ Acquired Hacking Suite. 03171_ Acquired 5 matter. 03204_ Acquired derelict log, extracted data. Data stored: Factory garrison access intel. 03272_ KK-50U(f): "Someone's put a hefty bounty on whatever we can steal from you!" 03275_ Lightpack 2.0 ripped off. 03277_ Dropped Electrolaser. 03280_ KK-50U(f) knocked back. 03302_ Dropped Lgt. Cannon. 03303_ YOLO Cannon ripped off. 03304_ Acquired Lgt. Cannon. 03305_ 85-2J1(f) knocked back. 03306_ Enh. Optical Array ripped off. 03313_ 85-2J1(f) suffers critical hit. 03313_ Destroyed Unknown Slashing Weapon. Map ----- +----------------------------------------------------+ | ?????????????????????????????????????????????????? | | ?????????????????????????????????????????????????? | | ?????????????????????????????????????????????????? | | ?????????????????????????????????????????????????? | | ?????????????????????????????????????????????????? | | ?????????????????????????????????????????????????? | | ?????????????????????????????????????????????????? | | ?????????????????????????????????????????????????? | | ?????????????????????????????????????????????????? | | ?????????????????????????????????????????????????? | | ?????????????????????????????????????????????????? | | ??????????????????????????????????????????##?????? | | ???????????????????????????????????????#### ##???? | | ???????????????????????????????????????# ###?? | | ???????????????????????????????????????? #?? | | ????????????????????????????????????????? #?? | | ####?????????????????????????????????????? #?? | | # #??????????????????????????????????????# #?? | | # ##??????????????####?????????????????### ##? | | # ##????????????## ####??????????????# ## | | ## ####?????????# ##??????????????# ## | | ?## #?????????## ##?????????????# #?# | | ??## ##??####???## [!!##?????????????# ### | | ??## #### #????####*!!!#????????????## | | ?## ## ##??????#]!/!#???????????## | | ?# ##????##!@!!##??????????# ### | | ?# #????# !=! ##?????????# #?? | | ?# ## #????## ###???????# #?? | | ?## ?# ##?????# #??????## #?? | | ??##?#### ##?????## ####???# ## #?? | | ?????#### #??##### ##??# ### #? | | ????## #### ## #### #?## ##? | | ????# ##??###?? | | ??# ## ##### ##???????? | | ?# #### #???# ##????????? | | ?# ##??## ### #??# #?????????? | | ?# ##????###?#### #?# ##?????????? | | ?### ?????????????## #?#### ##??????????? | | ???## #??????????????## ##????#####???????????? | | ????###????????????????#####?????????????????????? | | ?????????????????????????????????????????????????? | | ?????????????????????????????????????????????????? | | ?????????????????????????????????????????????????? | | ?????????????????????????????????????????????????? | | ?????????????????????????????????????????????????? | | ?????????????????????????????????????????????????? | | ?????????????????????????????????????????????????? | | ?????????????????????????????????????????????????? | | ?????????????????????????????????????????????????? | | ?????????????????????????????????????????????????? | +----------------------------------------------------+ Best States ------------- Heat Dissipation 34 Energy Generation 25 Energy Capacity 240 Matter Stores 300 Matter Capacity 300 Sight Range 22 Terrain Scan Density 10 Additional Mass Support 18 Armor Coverage 450 Propulsion Shielding 33 Utility Shielding 66 Evasion (%) 62 Targeting Accuracy 8 Offensive Hacking 20 Item Schematics ----------------- Force Field | -7/Factory | Hacked Energy Filter | -7/Factory | Hacked Structural Scanner | -7/Factory | Scanalyzed Robot Schematics ------------------ None Fabricated ------------ Nothing Alien Tech Used ----------------- None Achievements -------------- None Challenges ------------ None Game ------ Seed ImprinterGrenadeChip Manual? 0 Play Time 00:28:48 Cumulative 222.7 hours Start 2021.05.20 @ 16:45:28 End 2021.05.21 @ 16:37:45 Sessions 2 Manual Loads 0 Difficulty Rogue Special Mode None Game No. 427 Rogue 272 Adventurer 148 Explorer 7 Win Type - Total 9 Types 7/0/1/1/0/0/0/0/0 Lore% 74 Gallery% 85 Achievement% 64 Wizard Run 0 Options --------- ASCII 0 Keyboard 0 Movement Numpad Keybinds 0 Fullscreen 1 Font 18/CogNarrow Map View 76x50 Tactical HUD 1 Map Filters NONE Filters NONE Steam 1 RUN: 2a5e2452-dc78-4bba-b9e3-3f2be1d45df2